[Event "Early-Titled-Tuesday-Blitz-May-07-2024"]
[Site "Chess.com"]
[Date "2024.05.07"]
[Round "2"]
[White "Bwert2602"]
[Black "tantaan"]
[Result "0-1"]
[WhiteElo "2244"]
[BlackElo "2494"]
[TimeControl "180+1"]
[EndTime "8:14:58 PDT"]
[Termination "tantaan won by resignation"]

1. d4 {[%clk 0:03:00.9]} 1... Nf6 {[%clk 0:02:59.3]} 2. Nc3 {[%clk 0:02:59.5]}
2... d5 {[%clk 0:02:58.5]} 3. Qd3 {[%clk 0:02:57.6]} 3... e6 {[%clk 0:02:57]} 4.
Bg5 {[%clk 0:02:56.5]} 4... Be7 {[%clk 0:02:56.8]} 5. O-O-O {[%clk 0:02:55.7]}
5... O-O {[%clk 0:02:56.9]} 6. h4 {[%clk 0:02:56.3]} 6... c5 {[%clk 0:02:56.4]}
7. dxc5 {[%clk 0:02:55.9]} 7... Nbd7 {[%clk 0:02:56.3]} 8. Bxf6 {[%clk 0:02:42]}
8... Bxf6 {[%clk 0:02:55.2]} 9. e4 {[%clk 0:02:41.9]} 9... Nxc5 {[%clk
0:02:54.3]} 10. Qb5 {[%clk 0:02:37.6]} 10... Qb6 {[%clk 0:02:41.2]} 11. exd5
{[%clk 0:02:30.8]} 11... Bxc3 {[%clk 0:02:38.9]} 12. bxc3 {[%clk 0:02:27.3]}
12... exd5 {[%clk 0:02:33.5]} 13. Rxd5 {[%clk 0:02:27.1]} 13... Qh6+ {[%clk
0:02:27.9]} 14. Kb1 {[%clk 0:02:23.2]} 14... Ne4 {[%clk 0:02:24.7]} 15. Bd3
{[%clk 0:02:14.5]} 15... Nxc3+ {[%clk 0:02:23.9]} 0-1

[Event "Early-Titled-Tuesday-Blitz-May-07-2024"]
[Site "Chess.com"]
[Date "2024.05.07"]
[Round "2"]
[White "Sanyura"]
[Black "InitiatingASC"]
[Result "1-0"]
[WhiteElo "2618"]
[BlackElo "2385"]
[TimeControl "180+1"]
[EndTime "8:15:05 PDT"]
[Termination "Sanyura won by resignation"]

1. e4 {[%clk 0:03:00.9]} 1... e5 {[%clk 0:02:40.3]} 2. Nf3 {[%clk 0:03:00.6]}
2... Nf6 {[%clk 0:02:40.1]} 3. Nxe5 {[%clk 0:02:58.4]} 3... d6 {[%clk
0:02:39.8]} 4. Nf3 {[%clk 0:02:58.7]} 4... Nxe4 {[%clk 0:02:40.1]} 5. Nc3 {[%clk
0:02:59.3]} 5... Nxc3 {[%clk 0:02:39.4]} 6. dxc3 {[%clk 0:03:00.2]} 6... Be7
{[%clk 0:02:39.2]} 7. Be3 {[%clk 0:03:00.9]} 7... Nd7 {[%clk 0:02:37.4]} 8. Qd2
{[%clk 0:03:01.8]} 8... Ne5 {[%clk 0:02:35.2]} 9. O-O-O {[%clk 0:03:02.7]} 9...
Nxf3 {[%clk 0:02:35.3]} 10. gxf3 {[%clk 0:03:02.9]} 10... Be6 {[%clk 0:02:33.7]}
11. Rg1 {[%clk 0:03:03.3]} 11... Bf6 {[%clk 0:02:32.5]} 12. Bd4 {[%clk
0:03:02.9]} 12... a6 {[%clk 0:02:24.2]} 13. Re1 {[%clk 0:03:02]} 13... Qe7
{[%clk 0:02:22.8]} 14. Qe3 {[%clk 0:02:50.9]} 14... O-O {[%clk 0:02:10.5]} 15.
Qh6 {[%clk 0:02:41.1]} 15... Kh8 {[%clk 0:01:53.6]} 16. Rxg7 {[%clk 0:02:35.9]}
1-0

[Event "Early-Titled-Tuesday-Blitz-May-07-2024"]
[Site "Chess.com"]
[Date "2024.05.07"]
[Round "2"]
[White "wqws"]
[Black "AnnaChessLook"]
[Result "1-0"]
[WhiteElo "2693"]
[BlackElo "2301"]
[TimeControl "180+1"]
[EndTime "8:15:33 PDT"]
[Termination "wqws won by resignation"]

1. e4 {[%clk 0:03:00.3]} 1... c5 {[%clk 0:02:58]} 2. Nf3 {[%clk 0:03:00.3]} 2...
Nc6 {[%clk 0:02:57.9]} 3. d4 {[%clk 0:03:00.5]} 3... cxd4 {[%clk 0:02:57.7]} 4.
Nxd4 {[%clk 0:03:01]} 4... g6 {[%clk 0:02:58]} 5. c4 {[%clk 0:03:00.6]} 5... Nf6
{[%clk 0:02:58.1]} 6. Nc3 {[%clk 0:03:00.8]} 6... d6 {[%clk 0:02:57.7]} 7. Be3
{[%clk 0:03:00.8]} 7... Ng4 {[%clk 0:02:57.1]} 8. Nc2 {[%clk 0:02:52.9]} 8...
Nxe3 {[%clk 0:02:54.7]} 9. Nxe3 {[%clk 0:02:53.8]} 9... Bg7 {[%clk 0:02:53.9]}
10. Be2 {[%clk 0:02:53.3]} 10... O-O {[%clk 0:02:54.2]} 11. O-O {[%clk
0:02:53.4]} 11... Be6 {[%clk 0:02:52.9]} 12. Qd2 {[%clk 0:02:50.1]} 12... Rc8
{[%clk 0:02:50.6]} 13. Kh1 {[%clk 0:02:49.3]} 13... Qb6 {[%clk 0:02:45.4]} 14.
Rad1 {[%clk 0:02:43.3]} 14... Rfe8 {[%clk 0:02:24.5]} 15. f4 {[%clk 0:02:37.9]}
15... Nd4 {[%clk 0:02:20.1]} 16. f5 {[%clk 0:02:35.6]} 16... Bd7 {[%clk
0:02:16.4]} 17. f6 {[%clk 0:02:27.9]} 17... Bxf6 {[%clk 0:01:51.7]} 18. Ned5
{[%clk 0:02:23.6]} 18... Qc6 {[%clk 0:01:44.3]} 19. Nxf6+ {[%clk 0:02:22.1]}
19... exf6 {[%clk 0:01:45]} 20. Qxd4 {[%clk 0:02:22]} 1-0

[Event "Early-Titled-Tuesday-Blitz-May-07-2024"]
[Site "Chess.com"]
[Date "2024.05.07"]
[Round "2"]
[White "1800_strength"]
[Black "ReinisUz"]
[Result "1-0"]
[WhiteElo "2805"]
[BlackElo "2412"]
[TimeControl "180+1"]
[EndTime "8:15:36 PDT"]
[Termination "1800_strength won by resignation"]

1. a4 {[%clk 0:03:00.9]} 1... a5 {[%clk 0:02:58.9]} 2. Ra3 {[%clk 0:03:01.8]}
2... e6 {[%clk 0:02:58.3]} 3. b3 {[%clk 0:03:02]} 3... Nf6 {[%clk 0:02:58.9]} 4.
Bb2 {[%clk 0:03:02.3]} 4... b6 {[%clk 0:02:58.9]} 5. Nf3 {[%clk 0:03:02.2]} 5...
Bb7 {[%clk 0:02:59.4]} 6. g3 {[%clk 0:03:02.9]} 6... Bxa3 {[%clk 0:02:58]} 7.
Nxa3 {[%clk 0:03:03]} 7... O-O {[%clk 0:02:57.4]} 8. Bg2 {[%clk 0:03:03.6]} 8...
c5 {[%clk 0:02:57.8]} 9. O-O {[%clk 0:03:04.2]} 9... d5 {[%clk 0:02:58]} 10. d3
{[%clk 0:03:04.1]} 10... d4 {[%clk 0:02:58.4]} 11. e4 {[%clk 0:03:03.2]} 11...
Nbd7 {[%clk 0:02:55.6]} 12. Nc4 {[%clk 0:03:02.9]} 12... Qc7 {[%clk 0:02:53.5]}
13. Bc1 {[%clk 0:03:02.3]} 13... e5 {[%clk 0:02:53.2]} 14. Nh4 {[%clk
0:03:01.2]} 14... g6 {[%clk 0:02:52.5]} 15. f4 {[%clk 0:03:01.6]} 15... Ba6
{[%clk 0:02:44.2]} 16. fxe5 {[%clk 0:02:52.8]} 16... Bxc4 {[%clk 0:02:32.6]} 17.
exf6 {[%clk 0:02:51.1]} 17... Ba6 {[%clk 0:02:29.4]} 18. Qd2 {[%clk 0:02:47]}
18... Qe5 {[%clk 0:02:20]} 19. Nf5 {[%clk 0:02:07.7]} 19... Nxf6 {[%clk
0:02:13.9]} 20. Qg5 {[%clk 0:02:06.8]} 20... Nh5 {[%clk 0:02:00.7]} 21. Nh6+
{[%clk 0:02:06.6]} 1-0

[Event "Early-Titled-Tuesday-Blitz-May-07-2024"]
[Site "Chess.com"]
[Date "2024.05.07"]
[Round "2"]
[White "SHIVACalypso"]
[Black "superjem123"]
[Result "0-1"]
[WhiteElo "2540"]
[BlackElo "2746"]
[TimeControl "180+1"]
[EndTime "8:15:47 PDT"]
[Termination "superjem123 won by resignation"]

1. d4 {[%clk 0:03:00.9]} 1... Nf6 {[%clk 0:02:59.7]} 2. c4 {[%clk 0:03:01]} 2...
g6 {[%clk 0:02:59.6]} 3. Nf3 {[%clk 0:03:00.3]} 3... Bg7 {[%clk 0:02:59.4]} 4.
g3 {[%clk 0:03:00.6]} 4... O-O {[%clk 0:02:57.3]} 5. Bg2 {[%clk 0:03:01]} 5...
d6 {[%clk 0:02:57.2]} 6. O-O {[%clk 0:03:00.5]} 6... c5 {[%clk 0:02:57.3]} 7.
Nc3 {[%clk 0:02:59.4]} 7... cxd4 {[%clk 0:02:57.3]} 8. Nxd4 {[%clk 0:03:00.3]}
8... Nc6 {[%clk 0:02:58.2]} 9. Be3 {[%clk 0:02:57.6]} 9... Bd7 {[%clk
0:02:52.5]} 10. Rc1 {[%clk 0:02:42.2]} 10... Ng4 {[%clk 0:02:51.6]} 11. Nxc6
{[%clk 0:02:41.6]} 11... Nxe3 {[%clk 0:02:39]} 12. Nxd8 {[%clk 0:02:41.3]} 12...
Nxd1 {[%clk 0:02:39.4]} 13. Nd5 {[%clk 0:02:24.2]} 13... Rfxd8 {[%clk
0:01:51.2]} 14. Nxe7+ {[%clk 0:02:20.8]} 14... Kf8 {[%clk 0:01:50]} 15. Bxb7
{[%clk 0:02:16.3]} 15... Rab8 {[%clk 0:01:45.5]} 16. Nc6 {[%clk 0:02:16]} 16...
Bxc6 {[%clk 0:01:45.1]} 17. Bxc6 {[%clk 0:02:16]} 17... Nxb2 {[%clk 0:01:45.3]}
18. Bd5 {[%clk 0:02:15.9]} 18... Na4 {[%clk 0:01:43.5]} 19. Rfd1 {[%clk
0:02:14.1]} 19... Nc3 {[%clk 0:01:43.2]} 20. Rd3 {[%clk 0:02:13.9]} 20... Nxe2+
{[%clk 0:01:42.4]} 0-1

[Event "Early-Titled-Tuesday-Blitz-May-07-2024"]
[Site "Chess.com"]
[Date "2024.05.07"]
[Round "2"]
[White "watermelonattackk"]
[Black "krzyzan94"]
[Result "0-1"]
[WhiteElo "2552"]
[BlackElo "2796"]
[TimeControl "180+1"]
[EndTime "8:16:06 PDT"]
[Termination "krzyzan94 won by resignation"]

1. d4 {[%clk 0:02:59.4]} 1... Nf6 {[%clk 0:02:59.7]} 2. c4 {[%clk 0:02:59.4]}
2... d6 {[%clk 0:02:59]} 3. Nf3 {[%clk 0:02:59.3]} 3... g6 {[%clk 0:02:58.5]} 4.
g3 {[%clk 0:02:59.3]} 4... Bg7 {[%clk 0:02:57.5]} 5. Bg2 {[%clk 0:02:59.9]} 5...
O-O {[%clk 0:02:54.7]} 6. O-O {[%clk 0:03:00.5]} 6... c6 {[%clk 0:02:52.6]} 7.
Nc3 {[%clk 0:02:56.3]} 7... Qb6 {[%clk 0:02:48.9]} 8. h3 {[%clk 0:02:50]} 8...
Qa6 {[%clk 0:02:43.5]} 9. b3 {[%clk 0:02:45]} 9... b5 {[%clk 0:02:41.1]} 10.
cxb5 {[%clk 0:02:44.5]} 10... cxb5 {[%clk 0:02:42]} 11. b4 {[%clk 0:02:43.1]}
11... Bb7 {[%clk 0:02:34.2]} 12. Bb2 {[%clk 0:02:42]} 12... Ne4 {[%clk 0:02:30]}
13. Nxe4 {[%clk 0:02:41.5]} 13... Bxe4 {[%clk 0:02:30.9]} 14. a3 {[%clk
0:02:41.5]} 14... Nd7 {[%clk 0:02:29.7]} 15. Rc1 {[%clk 0:02:40.7]} 15... Nb6
{[%clk 0:02:26.9]} 16. Rc7 {[%clk 0:02:28.7]} 16... Nd5 {[%clk 0:02:18.4]} 17.
Rc1 {[%clk 0:02:26.3]} 17... Rac8 {[%clk 0:02:14.2]} 18. Nd2 {[%clk 0:02:25.9]}
18... Bxg2 {[%clk 0:02:12.8]} 19. Kxg2 {[%clk 0:02:26.8]} 19... Nb6 {[%clk
0:02:02.6]} 20. Qb3 {[%clk 0:02:18.1]} 20... Qb7+ {[%clk 0:01:43.6]} 21. Nf3
{[%clk 0:02:17.6]} 21... Nc4 {[%clk 0:01:42.4]} 22. e3 {[%clk 0:02:17.6]} 22...
Qxf3+ {[%clk 0:01:28.6]} 0-1

[Event "Early-Titled-Tuesday-Blitz-May-07-2024"]
[Site "Chess.com"]
[Date "2024.05.07"]
[Round "2"]
[White "Mikhail_Bryakin"]
[Black "Matsanovic"]
[Result "1-0"]
[WhiteElo "2886"]
[BlackElo "2600"]
[TimeControl "180+1"]
[EndTime "8:16:12 PDT"]
[Termination "Mikhail_Bryakin won by resignation"]

1. e4 {[%clk 0:03:00.5]} 1... c5 {[%clk 0:02:59.8]} 2. d4 {[%clk 0:02:58.3]}
2... cxd4 {[%clk 0:02:59.6]} 3. Qxd4 {[%clk 0:02:59.2]} 3... Nc6 {[%clk
0:02:59]} 4. Qd3 {[%clk 0:02:59.6]} 4... g6 {[%clk 0:02:55.9]} 5. Nc3 {[%clk
0:02:59.1]} 5... Bg7 {[%clk 0:02:55.9]} 6. Nf3 {[%clk 0:02:59.7]} 6... d6 {[%clk
0:02:53.6]} 7. Be2 {[%clk 0:02:59.9]} 7... Nf6 {[%clk 0:02:53]} 8. O-O {[%clk
0:03:00.5]} 8... O-O {[%clk 0:02:50.7]} 9. Nd5 {[%clk 0:03:01]} 9... Nxd5 {[%clk
0:02:48.7]} 10. exd5 {[%clk 0:03:01.9]} 10... Bf5 {[%clk 0:02:45.9]} 11. Qd1
{[%clk 0:03:01]} 11... Nb4 {[%clk 0:02:35.7]} 12. c3 {[%clk 0:02:50.2]} 12...
Nc2 {[%clk 0:02:30.2]} 13. g4 {[%clk 0:02:50.6]} 13... Nxa1 {[%clk 0:02:09.8]}
14. gxf5 {[%clk 0:02:50.8]} 14... Qb6 {[%clk 0:02:01.4]} 15. Bg5 {[%clk
0:02:46.5]} 15... Qxb2 {[%clk 0:01:59.8]} 16. Bxe7 {[%clk 0:02:28.4]} 16... Rfe8
{[%clk 0:01:59.6]} 17. f6 {[%clk 0:02:28.8]} 17... Bxf6 {[%clk 0:01:43.5]} 18.
Bxf6 {[%clk 0:02:28.4]} 18... Rxe2 {[%clk 0:01:43.4]} 19. Qxa1 {[%clk
0:02:27.3]} 19... Rxf2 {[%clk 0:01:29.2]} 20. Qxb2 {[%clk 0:02:26.9]} 20... Rxb2
{[%clk 0:01:29.3]} 21. c4 {[%clk 0:02:19.5]} 21... Rxa2 {[%clk 0:01:26.2]} 22.
c5 {[%clk 0:02:20]} 22... Re8 {[%clk 0:01:22.2]} 23. cxd6 {[%clk 0:02:18.2]}
23... Ree2 {[%clk 0:01:22.2]} 24. d7 {[%clk 0:02:16.1]} 1-0

[Event "Early-Titled-Tuesday-Blitz-May-07-2024"]
[Site "Chess.com"]
[Date "2024.05.07"]
[Round "2"]
[White "Msb2"]
[Black "Kunalm64"]
[Result "1-0"]
[WhiteElo "3039"]
[BlackElo "2639"]
[TimeControl "180+1"]
[EndTime "8:16:42 PDT"]
[Termination "Msb2 won by resignation"]

1. d4 {[%clk 0:03:00.9]} 1... Nf6 {[%clk 0:02:59]} 2. c4 {[%clk 0:03:01.3]} 2...
e6 {[%clk 0:02:59.4]} 3. Nc3 {[%clk 0:03:01.9]} 3... Bb4 {[%clk 0:02:59.5]} 4.
e3 {[%clk 0:03:02.4]} 4... O-O {[%clk 0:02:59.4]} 5. Bd2 {[%clk 0:03:03.1]} 5...
d5 {[%clk 0:02:57.5]} 6. Nf3 {[%clk 0:03:03.6]} 6... b6 {[%clk 0:02:51.6]} 7.
cxd5 {[%clk 0:03:03.7]} 7... exd5 {[%clk 0:02:51.2]} 8. Rc1 {[%clk 0:03:04.4]}
8... Bb7 {[%clk 0:02:48.5]} 9. Bd3 {[%clk 0:03:04.2]} 9... c5 {[%clk 0:02:43.5]}
10. a3 {[%clk 0:02:58.7]} 10... cxd4 {[%clk 0:02:38.9]} 11. axb4 {[%clk
0:02:55.5]} 11... dxc3 {[%clk 0:02:38.9]} 12. Bxc3 {[%clk 0:02:55.9]} 12... a5
{[%clk 0:02:19.8]} 13. bxa5 {[%clk 0:02:53.9]} 13... bxa5 {[%clk 0:02:19.1]} 14.
O-O {[%clk 0:02:53.9]} 14... Nc6 {[%clk 0:02:17.5]} 15. Nd4 {[%clk 0:02:49.9]}
15... Nb4 {[%clk 0:02:14.2]} 16. Bb1 {[%clk 0:02:43.9]} 16... Ne4 {[%clk
0:02:12.1]} 17. Bxe4 {[%clk 0:02:40]} 17... dxe4 {[%clk 0:02:11.5]} 18. Qg4
{[%clk 0:02:40.7]} 18... Bc8 {[%clk 0:00:33.2]} 19. Nf5 {[%clk 0:02:29.5]} 1-0

[Event "Early-Titled-Tuesday-Blitz-May-07-2024"]
[Site "Chess.com"]
[Date "2024.05.07"]
[Round "2"]
[White "Cheer_Down"]
[Black "ScaccoPaccoMatto"]
[Result "0-1"]
[WhiteElo "2466"]
[BlackElo "2730"]
[TimeControl "180+1"]
[EndTime "8:16:46 PDT"]
[Termination "ScaccoPaccoMatto won by resignation"]

1. e4 {[%clk 0:03:00.9]} 1... c6 {[%clk 0:03:00.4]} 2. d4 {[%clk 0:03:00.1]}
2... d5 {[%clk 0:03:01]} 3. e5 {[%clk 0:03:00.6]} 3... c5 {[%clk 0:03:01.6]} 4.
dxc5 {[%clk 0:02:59]} 4... e6 {[%clk 0:03:02.2]} 5. a3 {[%clk 0:02:58.3]} 5...
Bxc5 {[%clk 0:03:02.1]} 6. b4 {[%clk 0:02:57.4]} 6... Be7 {[%clk 0:03:02.5]} 7.
Nf3 {[%clk 0:02:56]} 7... a5 {[%clk 0:03:02.8]} 8. b5 {[%clk 0:02:51.9]} 8...
Nd7 {[%clk 0:03:03.2]} 9. Bd3 {[%clk 0:02:49.8]} 9... Qc7 {[%clk 0:03:03.6]} 10.
Bb2 {[%clk 0:02:48.4]} 10... Nh6 {[%clk 0:03:04]} 11. O-O {[%clk 0:02:47.4]}
11... O-O {[%clk 0:03:02.8]} 12. Re1 {[%clk 0:02:42.3]} 12... f6 {[%clk
0:03:02]} 13. exf6 {[%clk 0:02:34.1]} 13... Bxf6 {[%clk 0:03:00.9]} 14. Bxf6
{[%clk 0:02:33.6]} 14... Nxf6 {[%clk 0:03:01.2]} 15. c4 {[%clk 0:02:33.4]} 15...
Nf7 {[%clk 0:02:36.2]} 16. Qc2 {[%clk 0:02:29.4]} 16... Qf4 {[%clk 0:02:24.4]}
17. Nbd2 {[%clk 0:02:17.3]} 17... Bd7 {[%clk 0:02:11.3]} 18. c5 {[%clk
0:02:10.5]} 18... Rac8 {[%clk 0:02:10]} 19. Rac1 {[%clk 0:02:08.1]} 19... e5
{[%clk 0:01:49.2]} 20. g3 {[%clk 0:02:07.2]} 20... Qh6 {[%clk 0:01:48.4]} 21.
Nxe5 {[%clk 0:02:03.9]} 21... Nxe5 {[%clk 0:01:48.1]} 22. Rxe5 {[%clk
0:02:04.5]} 22... Ng4 {[%clk 0:01:48.7]} 23. Rf5 {[%clk 0:01:15.4]} 23... Qxh2+
{[%clk 0:01:44]} 0-1

[Event "Early-Titled-Tuesday-Blitz-May-07-2024"]
[Site "Chess.com"]
[Date "2024.05.07"]
[Round "2"]
[White "RantomOpening"]
[Black "JaackCamel"]
[Result "1-0"]
[WhiteElo "2505"]
[BlackElo "2271"]
[TimeControl "180+1"]
[EndTime "8:16:46 PDT"]
[Termination "RantomOpening won by resignation"]

1. Nf3 {[%clk 0:02:59.6]} 1... d5 {[%clk 0:02:59.4]} 2. g3 {[%clk 0:02:59.9]}
2... g6 {[%clk 0:02:58.8]} 3. Bg2 {[%clk 0:03:00.4]} 3... Bg7 {[%clk 0:02:59]}
4. O-O {[%clk 0:03:00.8]} 4... e5 {[%clk 0:02:59.1]} 5. d3 {[%clk 0:03:00.3]}
5... Ne7 {[%clk 0:02:58.5]} 6. c4 {[%clk 0:02:56.4]} 6... c6 {[%clk 0:02:57.8]}
7. Qc2 {[%clk 0:02:42.8]} 7... O-O {[%clk 0:02:55.6]} 8. Nc3 {[%clk 0:02:42.2]}
8... a6 {[%clk 0:02:40.9]} 9. Bg5 {[%clk 0:02:40.7]} 9... f6 {[%clk 0:02:35.2]}
10. Bd2 {[%clk 0:02:40.5]} 10... Be6 {[%clk 0:02:34.8]} 11. e4 {[%clk
0:02:39.7]} 11... d4 {[%clk 0:02:33.8]} 12. Ne2 {[%clk 0:02:38.3]} 12... c5
{[%clk 0:02:28.2]} 13. Ne1 {[%clk 0:02:37.8]} 13... g5 {[%clk 0:02:20.4]} 14. f4
{[%clk 0:02:37.1]} 14... gxf4 {[%clk 0:02:20.3]} 15. gxf4 {[%clk 0:02:38]} 15...
exf4 {[%clk 0:02:18.9]} 16. Nxf4 {[%clk 0:02:38.1]} 16... Bf7 {[%clk 0:02:17.3]}
17. Rf3 {[%clk 0:02:34]} 17... Nbc6 {[%clk 0:02:13.9]} 18. Rg3 {[%clk
0:02:33.7]} 18... Ne5 {[%clk 0:02:08.1]} 19. Nf3 {[%clk 0:02:32.3]} 19... N7c6
{[%clk 0:02:02]} 20. Nh4 {[%clk 0:02:26.8]} 20... Ng6 {[%clk 0:01:30.5]} 21. Nf5
{[%clk 0:02:23.6]} 21... Nce5 {[%clk 0:01:21.1]} 22. Nh5 {[%clk 0:02:21.7]} 1-0

[Event "Early-Titled-Tuesday-Blitz-May-07-2024"]
[Site "Chess.com"]
[Date "2024.05.07"]
[Round "2"]
[White "IriBu"]
[Black "Ryukchess81"]
[Result "1-0"]
[WhiteElo "2586"]
[BlackElo "2373"]
[TimeControl "180+1"]
[EndTime "8:16:57 PDT"]
[Termination "IriBu won by resignation"]

1. d4 {[%clk 0:03:00.9]} 1... d5 {[%clk 0:03:00.1]} 2. Nf3 {[%clk 0:03:00.7]}
2... Nf6 {[%clk 0:03:00.1]} 3. e3 {[%clk 0:03:00.8]} 3... Bg4 {[%clk 0:02:58.3]}
4. Nbd2 {[%clk 0:02:59.1]} 4... c6 {[%clk 0:02:58]} 5. h3 {[%clk 0:02:57.7]}
5... Bh5 {[%clk 0:02:57.2]} 6. g4 {[%clk 0:02:57.8]} 6... Bg6 {[%clk 0:02:57]}
7. Nh4 {[%clk 0:02:58.2]} 7... e6 {[%clk 0:02:57.1]} 8. Bg2 {[%clk 0:02:57.2]}
8... Nbd7 {[%clk 0:02:57.2]} 9. Nxg6 {[%clk 0:02:57.4]} 9... hxg6 {[%clk
0:02:57.2]} 10. b3 {[%clk 0:02:56.6]} 10... Bd6 {[%clk 0:02:57.3]} 11. Bb2
{[%clk 0:02:56.9]} 11... Qe7 {[%clk 0:02:57.9]} 12. f4 {[%clk 0:02:49]} 12... g5
{[%clk 0:02:41.1]} 13. Qf3 {[%clk 0:02:44.9]} 13... gxf4 {[%clk 0:02:38.5]} 14.
exf4 {[%clk 0:02:44.7]} 14... O-O-O {[%clk 0:02:33.8]} 15. O-O-O {[%clk
0:02:42.9]} 15... Kb8 {[%clk 0:02:34.5]} 16. Kb1 {[%clk 0:02:41.7]} 16... c5
{[%clk 0:02:25.4]} 17. Rhe1 {[%clk 0:02:36.8]} 17... cxd4 {[%clk 0:02:24.9]} 18.
Bxd4 {[%clk 0:02:36.7]} 18... Nc5 {[%clk 0:02:25.5]} 19. Qf2 {[%clk 0:02:33]}
19... Rc8 {[%clk 0:02:21.3]} 20. g5 {[%clk 0:02:27.2]} 20... Nfd7 {[%clk
0:02:10.5]} 21. Bxg7 {[%clk 0:02:22.3]} 21... Rh7 {[%clk 0:02:09]} 22. Bd4
{[%clk 0:02:22.3]} 22... b6 {[%clk 0:01:41]} 23. Re3 {[%clk 0:02:21.7]} 23...
Na6 {[%clk 0:01:40.7]} 24. c4 {[%clk 0:02:16.2]} 24... Nb4 {[%clk 0:01:33.3]}
25. Bxd5 {[%clk 0:02:10.1]} 25... Nxd5 {[%clk 0:01:19.7]} 26. cxd5 {[%clk
0:02:09.9]} 26... Ba3 {[%clk 0:01:18.1]} 27. Nc4 {[%clk 0:02:08.5]} 27... Rxc4
{[%clk 0:01:12.1]} 28. bxc4 {[%clk 0:02:08.3]} 28... Qb4+ {[%clk 0:01:12.5]} 29.
Rb3 {[%clk 0:02:08]} 29... Qxc4 {[%clk 0:01:13.1]} 30. Rxa3 {[%clk 0:02:07.6]}
1-0

[Event "Early-Titled-Tuesday-Blitz-May-07-2024"]
[Site "Chess.com"]
[Date "2024.05.07"]
[Round "2"]
[White "sokidze"]
[Black "rookpower2004"]
[Result "1-0"]
[WhiteElo "2824"]
[BlackElo "2568"]
[TimeControl "180+1"]
[EndTime "8:17:14 PDT"]
[Termination "sokidze won by resignation"]

1. d4 {[%clk 0:03:00.9]} 1... d5 {[%clk 0:02:59.1]} 2. c4 {[%clk 0:03:01.3]}
2... e6 {[%clk 0:02:59.4]} 3. Nf3 {[%clk 0:03:01.5]} 3... Nf6 {[%clk 0:02:59.1]}
4. g3 {[%clk 0:03:01.9]} 4... Be7 {[%clk 0:02:59.7]} 5. Bg2 {[%clk 0:03:02.2]}
5... O-O {[%clk 0:03:00.3]} 6. Qc2 {[%clk 0:03:02.5]} 6... b6 {[%clk 0:03:00.6]}
7. O-O {[%clk 0:03:01.5]} 7... Bb7 {[%clk 0:03:01.1]} 8. cxd5 {[%clk 0:02:59]}
8... Bxd5 {[%clk 0:02:58.5]} 9. Nc3 {[%clk 0:02:56.7]} 9... Bb7 {[%clk
0:02:57.3]} 10. e4 {[%clk 0:02:56.2]} 10... c5 {[%clk 0:02:57.3]} 11. Rd1 {[%clk
0:02:47.8]} 11... cxd4 {[%clk 0:02:49.8]} 12. Nxd4 {[%clk 0:02:47.8]} 12... Nbd7
{[%clk 0:02:49.3]} 13. e5 {[%clk 0:02:33.8]} 13... Nxe5 {[%clk 0:02:01.7]} 14.
Bxb7 {[%clk 0:02:28.2]} 14... Rb8 {[%clk 0:01:49.7]} 15. Nxe6 {[%clk 0:02:16.2]}
15... fxe6 {[%clk 0:01:29.6]} 16. Rxd8 {[%clk 0:02:15.5]} 16... Rfxd8 {[%clk
0:01:28.6]} 17. Bg2 {[%clk 0:02:12.6]} 17... Bc5 {[%clk 0:01:23]} 18. Bf4 {[%clk
0:02:10.7]} 18... Nfg4 {[%clk 0:01:12]} 19. Ne4 {[%clk 0:02:10.4]} 19... Bd4
{[%clk 0:01:12.1]} 20. h3 {[%clk 0:02:09.1]} 20... Nf6 {[%clk 0:00:54.5]} 21.
Nxf6+ {[%clk 0:02:09.3]} 21... gxf6 {[%clk 0:00:55.1]} 22. Rd1 {[%clk
0:02:09.8]} 22... Rbc8 {[%clk 0:00:52.8]} 23. Qb3 {[%clk 0:02:05.8]} 23... Kf7
{[%clk 0:00:50.9]} 24. Kh2 {[%clk 0:01:57.2]} 24... Bxf2 {[%clk 0:00:47.6]} 25.
Rxd8 {[%clk 0:01:56.8]} 25... Rxd8 {[%clk 0:00:46.8]} 26. Bxe5 {[%clk
0:01:57.3]} 1-0

[Event "Early-Titled-Tuesday-Blitz-May-07-2024"]
[Site "Chess.com"]
[Date "2024.05.07"]
[Round "2"]
[White "mishanick"]
[Black "MikeWizard"]
[Result "1-0"]
[WhiteElo "3045"]
[BlackElo "2040"]
[TimeControl "180+1"]
[EndTime "8:17:32 PDT"]
[Termination "mishanick won by resignation"]

1. d4 {[%clk 0:03:00.9]} 1... Nf6 {[%clk 0:02:58.8]} 2. c4 {[%clk 0:02:59.2]}
2... g6 {[%clk 0:02:56.4]} 3. Nc3 {[%clk 0:02:59.5]} 3... Bg7 {[%clk 0:02:56.5]}
4. e4 {[%clk 0:02:59.8]} 4... d6 {[%clk 0:02:56.7]} 5. Bd3 {[%clk 0:03:00.4]}
5... Nc6 {[%clk 0:02:54.9]} 6. Nge2 {[%clk 0:02:59.9]} 6... O-O {[%clk 0:02:53]}
7. O-O {[%clk 0:02:54.8]} 7... e5 {[%clk 0:02:52.7]} 8. d5 {[%clk 0:02:55.4]}
8... Nd4 {[%clk 0:02:52.7]} 9. Nxd4 {[%clk 0:02:56.1]} 9... exd4 {[%clk
0:02:52]} 10. Ne2 {[%clk 0:02:56.9]} 10... Nd7 {[%clk 0:02:40.5]} 11. Bc2 {[%clk
0:02:56.8]} 11... c5 {[%clk 0:02:40.1]} 12. dxc6 {[%clk 0:02:56.5]} 12... bxc6
{[%clk 0:02:39.6]} 13. Nxd4 {[%clk 0:02:56.9]} 13... Qb6 {[%clk 0:02:37]} 14.
Ne2 {[%clk 0:02:52.8]} 14... Ne5 {[%clk 0:02:29]} 15. Bb3 {[%clk 0:02:37.7]}
15... Be6 {[%clk 0:02:26.5]} 16. Be3 {[%clk 0:02:34.1]} 16... c5 {[%clk
0:02:21.9]} 17. Rc1 {[%clk 0:02:32]} 17... f5 {[%clk 0:01:58.2]} 18. Nf4 {[%clk
0:02:28.2]} 18... Rae8 {[%clk 0:01:49.8]} 19. Ba4 {[%clk 0:02:10.5]} 19... Re7
{[%clk 0:01:45.4]} 20. Nxe6 {[%clk 0:02:10.1]} 20... Rxe6 {[%clk 0:01:44.5]} 21.
exf5 {[%clk 0:02:10.6]} 21... Rxf5 {[%clk 0:01:41.2]} 22. b3 {[%clk 0:02:09.3]}
22... Nc6 {[%clk 0:01:29.9]} 23. Qg4 {[%clk 0:01:58.4]} 23... h5 {[%clk
0:01:09.1]} 24. Qh3 {[%clk 0:01:54.4]} 24... Rfe5 {[%clk 0:00:52.9]} 25. Rcd1
{[%clk 0:01:47.9]} 25... Re4 {[%clk 0:00:51.5]} 26. Bxc6 {[%clk 0:01:40.3]}
26... Qxc6 {[%clk 0:00:50.8]} 27. Rd5 {[%clk 0:01:40.9]} 27... R4e5 {[%clk
0:00:44.9]} 28. Rfd1 {[%clk 0:01:40.3]} 28... Rxd5 {[%clk 0:00:43.5]} 29. Qxe6+
{[%clk 0:01:39.5]} 1-0